[Event "*** Titled Tuesday Blitz"]
[Site "Chess.com"]
[Date "2019.10.01"]
[Round "5"]
[White "GadimbayliA"]
[Black "kingofthenil"]
[Result "1-0"]
[WhiteElo "2871"]
[BlackElo "2566"]
[TimeControl "180+2"]
[EndTime "14:10:29 PDT"]
[Termination "GadimbayliA won by resignation"]

1. e4 {[%clk 0:03:01.9]} 1... e6 {[%clk 0:02:59.7]} 2. d4 {[%clk 0:03:01.7]}
2... d5 {[%clk 0:03:01.6]} 3. Nd2 {[%clk 0:03:03.3]} 3... c5 {[%clk 0:03:00.9]}
4. Ngf3 {[%clk 0:03:03.1]} 4... Nc6 {[%clk 0:03:01.1]} 5. exd5 {[%clk
0:03:02.3]} 5... exd5 {[%clk 0:03:01.6]} 6. Bb5 {[%clk 0:03:03.3]} 6... Qe7+
{[%clk 0:03:02.7]} 7. Qe2 {[%clk 0:03:03.8]} 7... Qxe2+ {[%clk 0:03:03.3]} 8.
Kxe2 {[%clk 0:03:04.5]} 8... a6 {[%clk 0:03:04.7]} 9. Bxc6+ {[%clk 0:02:59.6]}
9... bxc6 {[%clk 0:03:06.6]} 10. dxc5 {[%clk 0:03:00.6]} 10... Bxc5 {[%clk
0:03:08.5]} 11. Nb3 {[%clk 0:03:01.5]} 11... Bd6 {[%clk 0:03:09]} 12. Be3 {[%clk
0:02:59.5]} 12... a5 {[%clk 0:03:07.9]} 13. Bc5 {[%clk 0:02:56.8]} 13... Kd7
{[%clk 0:03:08.4]} 14. Rhe1 {[%clk 0:02:43.9]} 14... Ba6+ {[%clk 0:03:03.8]} 15.
Kd2 {[%clk 0:02:37.8]} 15... a4 {[%clk 0:02:58.2]} 16. Bxd6 {[%clk 0:02:33.3]}
16... Kxd6 {[%clk 0:03:00.1]} 17. Nbd4 {[%clk 0:02:33.3]} 17... Ne7 {[%clk
0:03:00]} 18. Ne5 {[%clk 0:02:31.1]} 18... Rhf8 {[%clk 0:02:46]} 19. c3 {[%clk
0:02:31.7]} 19... Rab8 {[%clk 0:02:33]} 20. b4 {[%clk 0:02:28.7]} 20... Bc8
{[%clk 0:01:50.9]} 21. Nd3 {[%clk 0:02:18.8]} 21... Nf5 {[%clk 0:01:25.8]} 22.
Nxf5+ {[%clk 0:02:19.1]} 22... Bxf5 {[%clk 0:01:27.7]} 23. Nc5 {[%clk 0:02:21]}
23... a3 {[%clk 0:01:28.6]} 24. Ke3 {[%clk 0:02:10.2]} 24... g5 {[%clk
0:01:20.3]} 25. Kd4 {[%clk 0:02:07.6]} 25... Rfe8 {[%clk 0:01:15.3]} 26. Re3
{[%clk 0:02:08.3]} 26... Rxe3 {[%clk 0:01:15.3]} 27. fxe3 {[%clk 0:02:10.2]}
27... Bg6 {[%clk 0:01:16]} 28. Rf1 {[%clk 0:02:03]} 28... Re8 {[%clk 0:00:51]}
29. Rf6+ {[%clk 0:02:00]} 29... Kc7 {[%clk 0:00:52.2]} 30. b5 {[%clk 0:01:37.5]}
30... cxb5 {[%clk 0:00:49.5]} 31. Ra6 {[%clk 0:01:39.4]} 31... Rb8 {[%clk
0:00:19.6]} 32. Rxa3 {[%clk 0:01:37.3]} 32... Rb6 {[%clk 0:00:20.8]} 33. Ra7+
{[%clk 0:01:34.2]} 33... Kb8 {[%clk 0:00:19.9]} 34. Re7 {[%clk 0:01:35.1]} 34...
Rf6 {[%clk 0:00:21.1]} 35. Nd7+ {[%clk 0:01:35.8]} 35... Kc7 {[%clk 0:00:21.8]}
36. Nxf6+ {[%clk 0:01:37.7]} 36... Kd6 {[%clk 0:00:23.2]} 37. Ra7 {[%clk
0:01:37.8]} 37... h5 {[%clk 0:00:23.5]} 38. Ra6+ {[%clk 0:01:39.7]} 1-0

[Event "*** Titled Tuesday Blitz"]
[Site "Chess.com"]
[Date "2019.10.01"]
[Round "5"]
[White "TST2014"]
[Black "cherryandmint"]
[Result "0-1"]
[WhiteElo "2565"]
[BlackElo "2765"]
[TimeControl "180+2"]
[EndTime "14:10:33 PDT"]
[Termination "cherryandmint won on time"]

1. d4 {[%clk 0:03:01.9]} 1... d5 {[%clk 0:02:57.5]} 2. c4 {[%clk 0:03:02.6]}
2... e6 {[%clk 0:02:58.5]} 3. Nf3 {[%clk 0:03:03.1]} 3... Nf6 {[%clk 0:02:59.7]}
4. Nc3 {[%clk 0:03:03.8]} 4... c5 {[%clk 0:03:00.3]} 5. cxd5 {[%clk 0:03:04.4]}
5... Nxd5 {[%clk 0:03:02.2]} 6. e4 {[%clk 0:03:02.3]} 6... Nxc3 {[%clk
0:03:03.2]} 7. bxc3 {[%clk 0:03:04.2]} 7... cxd4 {[%clk 0:03:04.9]} 8. cxd4
{[%clk 0:03:05.9]} 8... Bb4+ {[%clk 0:03:06.5]} 9. Bd2 {[%clk 0:03:07.2]} 9...
Bxd2+ {[%clk 0:03:08.4]} 10. Qxd2 {[%clk 0:00:52.8]} 10... O-O {[%clk
0:03:10.3]} 11. Bc4 {[%clk 0:00:52]} 11... Nd7 {[%clk 0:02:45.4]} 12. O-O {[%clk
0:00:49.4]} 12... b6 {[%clk 0:02:45.8]} 13. Rfe1 {[%clk 0:00:43.7]} 13... Bb7
{[%clk 0:02:45.3]} 14. Rad1 {[%clk 0:00:43.6]} 14... Rc8 {[%clk 0:02:44.1]} 15.
Bb3 {[%clk 0:00:43.3]} 15... Re8 {[%clk 0:02:45.1]} 16. h4 {[%clk 0:00:43.5]}
16... h6 {[%clk 0:02:32.5]} 17. Qf4 {[%clk 0:00:43.9]} 17... Qc7 {[%clk
0:02:33.2]} 18. Qe3 {[%clk 0:00:43.9]} 18... Nf6 {[%clk 0:02:30]} 19. Qd3 {[%clk
0:00:39.6]} 19... Qc3 {[%clk 0:02:27.1]} 20. Qb1 {[%clk 0:00:34.6]} 20... b5
{[%clk 0:02:13]} 21. Re3 {[%clk 0:00:35.2]} 21... Qc7 {[%clk 0:02:11.5]} 22.
Rde1 {[%clk 0:00:35.5]} 22... a5 {[%clk 0:02:10.1]} 23. a3 {[%clk 0:00:33.8]}
23... Ng4 {[%clk 0:01:41.7]} 24. R3e2 {[%clk 0:00:33.1]} 24... Qf4 {[%clk
0:01:30.5]} 25. Qd3 {[%clk 0:00:29.5]} 25... b4 {[%clk 0:01:24.9]} 26. axb4
{[%clk 0:00:30]} 26... axb4 {[%clk 0:01:26.8]} 27. g3 {[%clk 0:00:31]} 27... Qf6
{[%clk 0:01:21.9]} 28. Rc2 {[%clk 0:00:30.2]} 28... Rxc2 {[%clk 0:01:20.6]} 29.
Bxc2 {[%clk 0:00:31]} 29... Rc8 {[%clk 0:01:17]} 30. Ne5 {[%clk 0:00:12.8]}
30... Qxf2+ {[%clk 0:01:14.7]} 0-1

[Event "*** Titled Tuesday Blitz"]
[Site "Chess.com"]
[Date "2019.10.01"]
[Round "5"]
[White "morphinho22"]
[Black "FearNoEvil12"]
[Result "1-0"]
[WhiteElo "2359"]
[BlackElo "2033"]
[TimeControl "180+2"]
[EndTime "14:10:46 PDT"]
[Termination "morphinho22 won by checkmate"]

1. Nf3 {[%clk 0:03:01.9]} 1... b5 {[%clk 0:02:59.9]} 2. e3 {[%clk 0:02:59.7]}
2... a6 {[%clk 0:03:01.3]} 3. b3 {[%clk 0:02:59.5]} 3... Bb7 {[%clk 0:03:02.3]}
4. Bb2 {[%clk 0:03:01]} 4... Nf6 {[%clk 0:03:03]} 5. Be2 {[%clk 0:03:02.5]} 5...
e6 {[%clk 0:03:04.2]} 6. O-O {[%clk 0:03:03.7]} 6... d6 {[%clk 0:03:05.7]} 7. c4
{[%clk 0:03:03.4]} 7... b4 {[%clk 0:03:04.6]} 8. d4 {[%clk 0:03:03.6]} 8... Nbd7
{[%clk 0:03:04.5]} 9. Nbd2 {[%clk 0:03:04.2]} 9... Rg8 {[%clk 0:03:05.3]} 10.
Bd3 {[%clk 0:02:47.5]} 10... g5 {[%clk 0:03:05.7]} 11. e4 {[%clk 0:02:46.6]}
11... g4 {[%clk 0:03:06]} 12. Ne1 {[%clk 0:02:46.5]} 12... h5 {[%clk 0:03:06.7]}
13. Nc2 {[%clk 0:02:38.5]} 13... g3 {[%clk 0:03:04.9]} 14. fxg3 {[%clk
0:02:35.9]} 14... h4 {[%clk 0:03:05.9]} 15. gxh4 {[%clk 0:02:34]} 15... Bh6
{[%clk 0:03:05.8]} 16. Qe2 {[%clk 0:02:21.4]} 16... Ng4 {[%clk 0:03:06]} 17. h3
{[%clk 0:02:10.6]} 17... Qxh4 {[%clk 0:03:02.5]} 18. hxg4 {[%clk 0:02:09.2]}
18... Nf6 {[%clk 0:03:03.9]} 19. Rxf6 {[%clk 0:02:05.5]} 19... Qxf6 {[%clk
0:03:03.4]} 20. Rf1 {[%clk 0:01:57.4]} 20... Qh4 {[%clk 0:03:03.7]} 21. d5
{[%clk 0:01:53.8]} 21... e5 {[%clk 0:02:53.9]} 22. Ne3 {[%clk 0:01:48.7]} 22...
Bf4 {[%clk 0:02:40.7]} 23. Rxf4 {[%clk 0:01:42.9]} 23... exf4 {[%clk 0:02:39]}
24. Nf5 {[%clk 0:01:39.7]} 24... Qxg4 {[%clk 0:02:29.6]} 25. Nf3 {[%clk
0:01:36.2]} 25... O-O-O {[%clk 0:02:27.8]} 26. Ne7+ {[%clk 0:01:35.4]} 26... Kb8
{[%clk 0:02:27.5]} 27. Nxg8 {[%clk 0:01:36.9]} 27... Rxg8 {[%clk 0:02:28.3]} 28.
e5 {[%clk 0:01:35.5]} 28... dxe5 {[%clk 0:02:25]} 29. Nxe5 {[%clk 0:01:33.7]}
29... Qg3 {[%clk 0:02:20.3]} 30. Be4 {[%clk 0:01:07.4]} 30... Ka8 {[%clk
0:02:07.5]} 31. c5 {[%clk 0:01:02]} 31... Rh8 {[%clk 0:02:04.6]} 32. Nf3 {[%clk
0:00:09.7]} 32... Re8 {[%clk 0:01:43.9]} 33. c6 {[%clk 0:00:10.1]} 33... Bc8
{[%clk 0:01:43.5]} 34. d6 {[%clk 0:00:11.5]} 34... Bf5 {[%clk 0:01:35.3]} 35. d7
{[%clk 0:00:11.9]} 35... Rg8 {[%clk 0:01:23.1]} 36. Qxa6+ {[%clk 0:00:12.5]}
36... Kb8 {[%clk 0:01:20.2]} 37. Qb7# {[%clk 0:00:14.4]} 1-0

[Event "*** Titled Tuesday Blitz"]
[Site "Chess.com"]
[Date "2019.10.01"]
[Round "5"]
[White "Spring199"]
[Black "arjwezhrtdrz"]
[Result "1-0"]
[WhiteElo "2374"]
[BlackElo "2081"]
[TimeControl "180+2"]
[EndTime "14:10:47 PDT"]
[Termination "Spring199 won by resignation"]

1. d4 {[%clk 0:03:01.9]} 1... d6 {[%clk 0:03:00.1]} 2. c4 {[%clk 0:03:01.1]}
2... e5 {[%clk 0:03:00.7]} 3. d5 {[%clk 0:02:55.9]} 3... f5 {[%clk 0:03:01.3]}
4. Nc3 {[%clk 0:02:55.7]} 4... Nf6 {[%clk 0:03:01.8]} 5. g3 {[%clk 0:02:56.9]}
5... Be7 {[%clk 0:03:00.7]} 6. Bg2 {[%clk 0:02:58]} 6... O-O {[%clk 0:03:01.3]}
7. e4 {[%clk 0:02:58.5]} 7... fxe4 {[%clk 0:02:56.9]} 8. Nxe4 {[%clk 0:02:58.5]}
8... Nxe4 {[%clk 0:02:57.9]} 9. Bxe4 {[%clk 0:02:59]} 9... Nd7 {[%clk
0:02:47.4]} 10. Ne2 {[%clk 0:02:58.2]} 10... Nf6 {[%clk 0:02:38.2]} 11. Bg2
{[%clk 0:02:58.3]} 11... Bf5 {[%clk 0:02:23.8]} 12. O-O {[%clk 0:02:57.5]} 12...
a5 {[%clk 0:02:23.9]} 13. Nc3 {[%clk 0:02:58]} 13... b6 {[%clk 0:02:21.4]} 14.
Bg5 {[%clk 0:02:56.2]} 14... Nd7 {[%clk 0:02:08.7]} 15. Bxe7 {[%clk 0:02:50.7]}
15... Qxe7 {[%clk 0:02:09.4]} 16. Be4 {[%clk 0:02:51.9]} 16... Nc5 {[%clk
0:02:03.6]} 17. Bxf5 {[%clk 0:02:41.4]} 17... Rxf5 {[%clk 0:02:05.4]} 18. Qe2
{[%clk 0:02:43.3]} 18... Raf8 {[%clk 0:02:04.2]} 19. Rae1 {[%clk 0:02:39.7]}
19... Rf3 {[%clk 0:01:42.1]} 20. Kg2 {[%clk 0:02:39.2]} 20... Qf7 {[%clk
0:01:32]} 21. Rd1 {[%clk 0:02:35.4]} 21... Qh5 {[%clk 0:01:14.4]} 22. Rd2 {[%clk
0:02:32.2]} 22... Qf7 {[%clk 0:01:09.6]} 23. Ne4 {[%clk 0:02:20.4]} 23... Nxe4
{[%clk 0:01:10.1]} 24. Qxe4 {[%clk 0:02:20.4]} 24... Rf6 {[%clk 0:01:10.6]} 25.
b3 {[%clk 0:02:17.1]} 25... Qh5 {[%clk 0:01:10.7]} 26. f3 {[%clk 0:02:11]} 26...
Qh6 {[%clk 0:01:09]} 27. Rdf2 {[%clk 0:02:10.7]} 27... Qg5 {[%clk 0:01:07.7]}
28. h4 {[%clk 0:02:10.8]} 28... Qg6 {[%clk 0:01:08]} 29. Qxg6 {[%clk 0:02:03.7]}
29... Rxg6 {[%clk 0:01:08.9]} 30. f4 {[%clk 0:02:04.3]} 30... exf4 {[%clk
0:01:10.1]} 31. Rxf4 {[%clk 0:02:04.9]} 31... Rxf4 {[%clk 0:01:10.5]} 32. Rxf4
{[%clk 0:02:05.6]} 32... h6 {[%clk 0:00:23.5]} 33. Kf3 {[%clk 0:02:03.1]} 33...
Rf6 {[%clk 0:00:16.2]} 34. Rxf6 {[%clk 0:02:03]} 34... gxf6 {[%clk 0:00:17.5]}
35. Kf4 {[%clk 0:02:04.9]} 35... h5 {[%clk 0:00:05.6]} 36. g4 {[%clk 0:02:01.1]}
36... hxg4 {[%clk 0:00:06.1]} 37. Kxg4 {[%clk 0:02:03]} 37... Kf7 {[%clk
0:00:07]} 38. Kf5 {[%clk 0:02:03.5]} 38... Kg7 {[%clk 0:00:08.3]} 39. h5 {[%clk
0:02:04.2]} 39... Kf7 {[%clk 0:00:09.7]} 40. h6 {[%clk 0:02:04.9]} 1-0

[Event "*** Titled Tuesday Blitz"]
[Site "Chess.com"]
[Date "2019.10.01"]
[Round "5"]
[White "SanchezKelvin"]
[Black "2165149677570"]
[Result "1-0"]
[WhiteElo "2522"]
[BlackElo "2302"]
[TimeControl "180+2"]
[EndTime "14:10:48 PDT"]
[Termination "SanchezKelvin won by resignation"]

1. d4 {[%clk 0:03:01.9]} 1... Nf6 {[%clk 0:03:00.1]} 2. c4 {[%clk 0:03:03.8]}
2... b6 {[%clk 0:02:58.4]} 3. Nf3 {[%clk 0:03:05.7]} 3... e6 {[%clk 0:02:56.4]}
4. g3 {[%clk 0:03:04.7]} 4... Ba6 {[%clk 0:02:57.1]} 5. Qc2 {[%clk 0:02:56.7]}
5... Bb7 {[%clk 0:02:55.5]} 6. Bg2 {[%clk 0:02:33.9]} 6... c5 {[%clk 0:02:56.2]}
7. d5 {[%clk 0:02:32.1]} 7... exd5 {[%clk 0:02:56.8]} 8. cxd5 {[%clk 0:02:34]}
8... Bxd5 {[%clk 0:02:51.8]} 9. Nc3 {[%clk 0:02:33.1]} 9... Bb7 {[%clk
0:02:51.3]} 10. O-O {[%clk 0:02:33]} 10... Be7 {[%clk 0:02:48.1]} 11. e4 {[%clk
0:02:31.2]} 11... O-O {[%clk 0:02:44.2]} 12. e5 {[%clk 0:02:31.2]} 12... Nd5
{[%clk 0:02:43.4]} 13. Nxd5 {[%clk 0:02:28.4]} 13... Bxd5 {[%clk 0:02:44.3]} 14.
Rd1 {[%clk 0:02:25.5]} 14... Bc6 {[%clk 0:02:37.6]} 15. h4 {[%clk 0:02:20.5]}
15... f6 {[%clk 0:02:23.8]} 16. exf6 {[%clk 0:02:16]} 16... Bxf6 {[%clk
0:02:16]} 17. Ng5 {[%clk 0:02:00.5]} 17... Bxg5 {[%clk 0:01:50]} 18. Bxg5 {[%clk
0:01:49]} 18... Qc7 {[%clk 0:01:51.2]} 19. Be7 {[%clk 0:01:40.4]} 19... Rf7
{[%clk 0:01:46.3]} 20. Bd6 {[%clk 0:01:36.6]} 20... Qb7 {[%clk 0:01:47.6]} 21.
Bf1 {[%clk 0:01:36]} 21... Kh8 {[%clk 0:01:32.5]} 22. Bc4 {[%clk 0:01:26]} 22...
Be4 {[%clk 0:01:04.9]} 23. Re1 {[%clk 0:01:04.3]} 23... Re7 {[%clk 0:00:54.5]}
24. Qd2 {[%clk 0:00:44.4]} 24... Bh1 {[%clk 0:00:39.9]} 25. f3 {[%clk
0:00:32.5]} 25... Rxe1+ {[%clk 0:00:35.2]} 26. Rxe1 {[%clk 0:00:30.3]} 26... Na6
{[%clk 0:00:37.1]} 27. Bd5 {[%clk 0:00:22.4]} 1-0

[Event "*** Titled Tuesday Blitz"]
[Site "Chess.com"]
[Date "2019.10.01"]
[Round "5"]
[White "dolynachess"]
[Black "Saloni1299"]
[Result "0-1"]
[WhiteElo "2397"]
[BlackElo "2063"]
[TimeControl "180+2"]
[EndTime "14:10:57 PDT"]
[Termination "Saloni1299 won by resignation"]

1. d4 {[%clk 0:03:01.9]} 1... Nf6 {[%clk 0:03:00.6]} 2. c4 {[%clk 0:03:03.8]}
2... g6 {[%clk 0:03:00.8]} 3. Nc3 {[%clk 0:03:03.5]} 3... d5 {[%clk 0:03:01.5]}
4. cxd5 {[%clk 0:03:05.3]} 4... Nxd5 {[%clk 0:03:03]} 5. e4 {[%clk 0:03:07]}
5... Nxc3 {[%clk 0:03:03.6]} 6. bxc3 {[%clk 0:03:08.9]} 6... Bg7 {[%clk
0:03:03.7]} 7. Bb5+ {[%clk 0:03:09.3]} 7... c6 {[%clk 0:03:00.2]} 8. Bc4 {[%clk
0:03:08]} 8... O-O {[%clk 0:03:01.7]} 9. Ne2 {[%clk 0:03:09.1]} 9... c5 {[%clk
0:03:02.8]} 10. O-O {[%clk 0:03:08.5]} 10... Nc6 {[%clk 0:03:01.1]} 11. Be3
{[%clk 0:03:08.7]} 11... Qa5 {[%clk 0:02:56.3]} 12. d5 {[%clk 0:03:01.4]} 12...
Ne5 {[%clk 0:02:56.1]} 13. Bb3 {[%clk 0:03:02]} 13... Ng4 {[%clk 0:02:44.6]} 14.
Bd2 {[%clk 0:02:58.7]} 14... c4 {[%clk 0:02:44.3]} 15. Bxc4 {[%clk 0:02:53.8]}
15... Qc7 {[%clk 0:02:45.1]} 16. f4 {[%clk 0:02:04.5]} 16... Qxc4 {[%clk
0:02:45.2]} 17. Ng3 {[%clk 0:01:01.9]} 17... Qc5+ {[%clk 0:02:32.8]} 18. Kh1
{[%clk 0:01:02.3]} 18... Nf2+ {[%clk 0:02:33.2]} 19. Rxf2 {[%clk 0:01:03.6]}
19... Qxf2 {[%clk 0:02:34]} 20. Qc2 {[%clk 0:01:00]} 20... Qc5 {[%clk
0:02:27.9]} 21. Rf1 {[%clk 0:00:53.6]} 21... b6 {[%clk 0:02:28.5]} 22. f5 {[%clk
0:00:45.8]} 22... Ba6 {[%clk 0:02:29.4]} 23. Rf3 {[%clk 0:00:46.2]} 23... Rac8
{[%clk 0:02:22.8]} 24. h4 {[%clk 0:00:39.1]} 24... Be5 {[%clk 0:02:10.4]} 25.
Bh6 {[%clk 0:00:23.9]} 25... Bg7 {[%clk 0:01:52.7]} 26. Qc1 {[%clk 0:00:21]}
26... Qd6 {[%clk 0:01:43.2]} 27. h5 {[%clk 0:00:20.8]} 27... Be5 {[%clk
0:01:02.5]} 28. Bf4 {[%clk 0:00:18.8]} 28... Bxf4 {[%clk 0:01:01.8]} 29. Rxf4
{[%clk 0:00:20.7]} 29... Rxc3 {[%clk 0:01:00.8]} 30. Qxc3 {[%clk 0:00:19.6]}
30... Qxf4 {[%clk 0:01:01.6]} 31. Kg1 {[%clk 0:00:14.8]} 31... Rc8 {[%clk
0:01:02]} 0-1

[Event "*** Titled Tuesday Blitz"]
[Site "Chess.com"]
[Date "2019.10.01"]
[Round "5"]
[White "brendan174"]
[Black "IvanRadivojevic"]
[Result "0-1"]
[WhiteElo "2115"]
[BlackElo "2407"]
[TimeControl "180+2"]
[EndTime "14:11:01 PDT"]
[Termination "IvanRadivojevic won by resignation"]

1. d4 {[%clk 0:03:01.9]} 1... Nf6 {[%clk 0:03:00.6]} 2. Nc3 {[%clk 0:03:02.9]}
2... d5 {[%clk 0:03:01.1]} 3. Bf4 {[%clk 0:03:03.7]} 3... c6 {[%clk 0:03:02]} 4.
e3 {[%clk 0:03:03.2]} 4... Bf5 {[%clk 0:03:02.9]} 5. f3 {[%clk 0:03:04.4]} 5...
e6 {[%clk 0:03:03.8]} 6. g4 {[%clk 0:03:05.6]} 6... Bg6 {[%clk 0:03:04.9]} 7. h4
{[%clk 0:03:07.2]} 7... h5 {[%clk 0:03:06]} 8. g5 {[%clk 0:03:08.4]} 8... Nfd7
{[%clk 0:03:07.1]} 9. Bd3 {[%clk 0:03:10.1]} 9... Bxd3 {[%clk 0:03:06.9]} 10.
Qxd3 {[%clk 0:03:12]} 10... g6 {[%clk 0:03:08.2]} 11. Nge2 {[%clk 0:03:08.9]}
11... a6 {[%clk 0:03:08.9]} 12. e4 {[%clk 0:03:07.7]} 12... Bg7 {[%clk
0:03:06.7]} 13. exd5 {[%clk 0:02:44.4]} 13... cxd5 {[%clk 0:03:06.4]} 14. O-O-O
{[%clk 0:02:25.2]} 14... Nc6 {[%clk 0:03:05.2]} 15. Rde1 {[%clk 0:02:24.9]}
15... O-O {[%clk 0:03:05.1]} 16. Kb1 {[%clk 0:02:14.6]} 16... Qa5 {[%clk
0:03:00.7]} 17. Bd2 {[%clk 0:01:45]} 17... Qb6 {[%clk 0:03:00.6]} 18. Be3 {[%clk
0:01:45.2]} 18... Rac8 {[%clk 0:03:00.6]} 19. Rd1 {[%clk 0:01:43.4]} 19... Qa7
{[%clk 0:02:40.8]} 20. Nf4 {[%clk 0:01:42.5]} 20... Rfe8 {[%clk 0:02:38.6]} 21.
Nxg6 {[%clk 0:01:38.8]} 21... fxg6 {[%clk 0:02:39.7]} 22. Qxg6 {[%clk
0:01:40.7]} 22... Nf8 {[%clk 0:02:40.6]} 23. Qxh5 {[%clk 0:01:41.2]} 23... b5
{[%clk 0:02:33.5]} 24. Qg4 {[%clk 0:01:38.9]} 24... Ne5 {[%clk 0:02:22.7]} 25.
dxe5 {[%clk 0:01:12.9]} 25... Qxe3 {[%clk 0:02:22.4]} 26. Rhe1 {[%clk
0:01:13.4]} 26... Qa7 {[%clk 0:02:18.4]} 27. h5 {[%clk 0:01:14.5]} 27... Qf7
{[%clk 0:02:07.9]} 28. h6 {[%clk 0:00:58]} 28... Bh8 {[%clk 0:02:08.7]} 29. Rd4
{[%clk 0:00:32.9]} 29... Ng6 {[%clk 0:02:08.2]} 30. f4 {[%clk 0:00:25.7]} 30...
Kh7 {[%clk 0:02:02.3]} 31. Rf1 {[%clk 0:00:24]} 31... Nxe5 {[%clk 0:01:26.9]}
32. Qg2 {[%clk 0:00:11.1]} 32... Ng6 {[%clk 0:01:26.6]} 33. Rd2 {[%clk
0:00:07.8]} 33... Bxc3 {[%clk 0:01:21.1]} 34. bxc3 {[%clk 0:00:08.5]} 34... Rxc3
{[%clk 0:01:20.9]} 35. Rdf2 {[%clk 0:00:08.3]} 35... Qf5 {[%clk 0:01:19.4]} 36.
Qh2 {[%clk 0:00:05.1]} 36... Rec8 {[%clk 0:01:19.7]} 37. Rc1 {[%clk 0:00:05.3]}
37... R8c4 {[%clk 0:01:16.2]} 0-1

[Event "*** Titled Tuesday Blitz"]
[Site "Chess.com"]
[Date "2019.10.01"]
[Round "5"]
[White "Keaton87"]
[Black "malandragem"]
[Result "1-0"]
[WhiteElo "2590"]
[BlackElo "2306"]
[TimeControl "180+2"]
[EndTime "14:11:05 PDT"]
[Termination "Keaton87 won by resignation"]

1. e4 {[%clk 0:03:01.9]} 1... Nf6 {[%clk 0:03:01.9]} 2. e5 {[%clk 0:03:02.8]}
2... Nd5 {[%clk 0:02:51.5]} 3. d4 {[%clk 0:03:03.9]} 3... d6 {[%clk 0:02:47.9]}
4. Bc4 {[%clk 0:03:04.1]} 4... Nb6 {[%clk 0:02:48.7]} 5. Bb3 {[%clk 0:03:05.2]}
5... g6 {[%clk 0:02:49.3]} 6. e6 {[%clk 0:03:00.5]} 6... Bxe6 {[%clk 0:02:26.6]}
7. Bxe6 {[%clk 0:03:00.3]} 7... fxe6 {[%clk 0:02:28.5]} 8. h4 {[%clk 0:03:01.3]}
8... Bg7 {[%clk 0:02:21.6]} 9. h5 {[%clk 0:03:01.8]} 9... Nc6 {[%clk 0:02:22.3]}
10. c3 {[%clk 0:03:02.3]} 10... Qd7 {[%clk 0:02:21.9]} 11. Nf3 {[%clk
0:02:54.5]} 11... O-O-O {[%clk 0:02:21.5]} 12. Ng5 {[%clk 0:02:53.4]} 12... Rdf8
{[%clk 0:02:22.4]} 13. Qg4 {[%clk 0:02:44.8]} 13... Rf5 {[%clk 0:02:15.9]} 14.
hxg6 {[%clk 0:02:42.3]} 14... hxg6 {[%clk 0:02:16.4]} 15. Rxh8+ {[%clk
0:02:43.2]} 15... Bxh8 {[%clk 0:02:18.3]} 16. Be3 {[%clk 0:02:43.6]} 16... e5
{[%clk 0:02:16.3]} 17. Nf3 {[%clk 0:02:39.1]} 17... exd4 {[%clk 0:02:14.9]} 18.
cxd4 {[%clk 0:02:38]} 18... Nb4 {[%clk 0:02:01.3]} 19. Na3 {[%clk 0:02:26.1]}
19... Nd3+ {[%clk 0:01:22.4]} 20. Ke2 {[%clk 0:02:22.5]} 20... Nxb2 {[%clk
0:01:23.2]} 21. Qxg6 {[%clk 0:02:22.9]} 21... Rf8 {[%clk 0:01:24.4]} 22. Rc1
{[%clk 0:02:13.7]} 22... Qa4 {[%clk 0:01:11.4]} 23. Qe6+ {[%clk 0:01:53.1]}
23... Kb8 {[%clk 0:01:11.6]} 24. Qb3 {[%clk 0:01:54]} 24... Qa6+ {[%clk
0:01:05.3]} 25. Nb5 {[%clk 0:01:35.9]} 25... N2c4 {[%clk 0:00:55.7]} 26. Rxc4
{[%clk 0:01:34.9]} 26... c6 {[%clk 0:00:48.9]} 27. Rc1 {[%clk 0:01:30]} 27...
cxb5 {[%clk 0:00:45.1]} 28. Nd2 {[%clk 0:01:22.9]} 28... Na4 {[%clk 0:00:34.6]}
29. g4 {[%clk 0:01:11.9]} 29... b4+ {[%clk 0:00:31.3]} 30. Ke1 {[%clk
0:01:02.8]} 30... Nc3 {[%clk 0:00:32.4]} 31. Qc4 {[%clk 0:01:04.5]} 31... Qa3
{[%clk 0:00:21.5]} 32. Nb1 {[%clk 0:00:52]} 32... Qxa2 {[%clk 0:00:16.7]} 33.
Rxc3 {[%clk 0:00:48.3]} 33... Qxb1+ {[%clk 0:00:17.1]} 34. Rc1 {[%clk 0:00:49]}
1-0

[Event "*** Titled Tuesday Blitz"]
[Site "Chess.com"]
[Date "2019.10.01"]
[Round "5"]
[White "MasterKroket"]
[Black "MathiasWomacka"]
[Result "0-1"]
[WhiteElo "2425"]
[BlackElo "2283"]
[TimeControl "180+2"]
[EndTime "14:11:12 PDT"]
[Termination "MathiasWomacka won by resignation"]

1. d4 {[%clk 0:03:01.9]} 1... Nf6 {[%clk 0:03:00.3]} 2. c4 {[%clk 0:03:02.4]}
2... e6 {[%clk 0:03:01.2]} 3. Nf3 {[%clk 0:03:01.4]} 3... Bb4+ {[%clk
0:03:01.4]} 4. Bd2 {[%clk 0:03:01.8]} 4... Qe7 {[%clk 0:03:01.7]} 5. g3 {[%clk
0:03:01.9]} 5... Bxd2+ {[%clk 0:02:55.9]} 6. Nbxd2 {[%clk 0:03:00.6]} 6... d6
{[%clk 0:02:55.9]} 7. Bg2 {[%clk 0:03:00.8]} 7... e5 {[%clk 0:02:56.2]} 8. e3
{[%clk 0:02:50]} 8... O-O {[%clk 0:02:55.1]} 9. Qc2 {[%clk 0:02:49.4]} 9... Bg4
{[%clk 0:02:40.6]} 10. O-O {[%clk 0:02:48.3]} 10... c5 {[%clk 0:02:14.9]} 11. b4
{[%clk 0:02:36.4]} 11... cxb4 {[%clk 0:02:07.4]} 12. a3 {[%clk 0:02:37.5]} 12...
bxa3 {[%clk 0:02:07.1]} 13. Rfb1 {[%clk 0:02:37.7]} 13... Nc6 {[%clk 0:01:30.7]}
14. Rxa3 {[%clk 0:02:24.9]} 14... Rfc8 {[%clk 0:01:25.3]} 15. Qb2 {[%clk
0:02:11.3]} 15... b6 {[%clk 0:01:20.6]} 16. h3 {[%clk 0:01:55.6]} 16... Bf5
{[%clk 0:01:19]} 17. Rba1 {[%clk 0:01:55.5]} 17... h6 {[%clk 0:00:57.7]} 18. c5
{[%clk 0:01:34.8]} 18... dxc5 {[%clk 0:00:47.2]} 19. Nxe5 {[%clk 0:01:33.5]}
19... Nxe5 {[%clk 0:00:41.1]} 20. dxe5 {[%clk 0:01:32.8]} 20... Ne8 {[%clk
0:00:39]} 21. Bxa8 {[%clk 0:01:33.5]} 21... Rxa8 {[%clk 0:00:40.4]} 22. g4
{[%clk 0:01:26.6]} 22... Be6 {[%clk 0:00:40]} 23. e4 {[%clk 0:01:12]} 23... h5
{[%clk 0:00:28.1]} 24. Rg3 {[%clk 0:01:00.3]} 24... hxg4 {[%clk 0:00:26.2]} 25.
hxg4 {[%clk 0:01:01]} 25... Rd8 {[%clk 0:00:27.8]} 26. Nf1 {[%clk 0:00:57.5]}
26... Rd4 {[%clk 0:00:27.2]} 27. Qe2 {[%clk 0:00:43]} 27... a5 {[%clk
0:00:18.5]} 28. f4 {[%clk 0:00:42.2]} 28... a4 {[%clk 0:00:18.3]} 29. f5 {[%clk
0:00:42.4]} 29... Bb3 {[%clk 0:00:19.3]} 30. Nd2 {[%clk 0:00:30.6]} 30... Qxe5
{[%clk 0:00:20.1]} 31. Nf3 {[%clk 0:00:31.1]} 31... Qxg3+ {[%clk 0:00:20.6]} 32.
Kf1 {[%clk 0:00:28.3]} 0-1